bitfinex/quotes_BTCUSD_20240701
["timestamp","ask_amount","ask_price","bid_price","bid_amount"]
[1719824994416,2.0849852,62969.0,62968.0,0.001]
[1719824994614,2.0849852,62969.0,62968.0,0.0011]
[1719824995260,2.10097992,62969.0,62968.0,0.0011]
[1719824996475,2.10108944,62969.0,62968.0,0.0011]
[1719824997750,2.10108944,62969.0,62968.0,0.0012]
[1719824999777,2.07201454,62969.0,62968.0,0.0012]
[1719824999899,2.10108515,62969.0,62968.0,0.0012]
[1719825000714,2.08499699,62969.0,62968.0,0.0012]
[1719825000916,2.10108238,62969.0,62968.0,0.0012]
[1719825001421,2.26945207,62969.0,62968.0,0.0012]
[1719825001734,2.70520691,62969.0,62968.0,0.0012]
[1719825002143,2.69223072,62969.0,62968.0,0.0012]
[1719825002354,2.90521557,62969.0,62968.0,0.0012]
[1719825002544,3.02318219,62969.0,62968.0,0.0012]
[1719825002945,3.01218219,62969.0,62968.0,0.0012]
[1719825003141,3.02218219,62969.0,62968.0,0.0012]
[1719825003349,2.94798219,62969.0,62968.0,0.0002]
[1719825003550,3.02018219,62969.0,62968.0,0.0002]
[1719825003749,2.82518219,62969.0,62968.0,0.0002]
[1719825003951,2.50756619,62969.0,62968.0,0.0002]
[1719825004193,2.38959957,62969.0,62968.0,0.0002]
[1719825004656,2.32458423,62969.0,62968.0,0.0002]
[1719825004929,2.39003214,62969.0,62968.0,0.0002]
[1719825005548,2.39003177,62969.0,62968.0,0.0002]
[1719825005977,2.39002129,62969.0,62968.0,0.0002]
[1719825006368,2.07112129,62969.0,62968.0,0.0002]
[1719825006575,2.0409516,62969.0,62968.0,0.0002]
[1719825006774,2.00496829,62969.0,62968.0,0.0002]
[1719825007610,1.68735229,62969.0,62968.0,0.0002]
[1719825008460,1.65789854,62969.0,62968.0,0.0002]
[1719825008610,1.68709984,62969.0,62968.0,0.0002]
[1719825009945,1.53181755,62969.0,62968.0,0.0002]
[1719825010147,0.8733284,62969.0,62968.0,0.0002]
[1719825010320,1.1909444,62969.0,62968.0,0.0002]
[1719825010957,1.5085604,62969.0,62968.0,0.0002]
[1719825011470,1.1909444,62969.0,62968.0,0.0002]
[1719825011718,1.80877318,62969.0,62968.0,0.0002]
[1719825011917,1.8378174,62969.0,62968.0,0.0002]
[1719825013445,1.82175383,62969.0,62968.0,0.0002]
[1719825013854,1.83788732,62969.0,62968.0,0.0002]
[1719825014883,1.83752633,62969.0,62968.0,0.0002]
[1719825018055,1.82171685,62969.0,62968.0,0.0002]
[1719825018265,1.83742011,62969.0,62968.0,0.0002]
[1719825018468,1.68654319,62969.0,62968.0,0.0002]
[1719825020347,1.68653772,62969.0,62968.0,0.0002]
[1719825021345,1.68655505,62969.0,62968.0,0.0002]
[1719825022830,1.84071817,62969.0,62968.0,0.0002]
[1719825023044,1.72245803,62969.0,62968.0,0.0002]
[1719825023182,2.45376788,62969.0,62968.0,0.0002]
[1719825024176,2.4178649,62969.0,62968.0,0.0002]
[1719825024379,2.41785407,62969.0,62968.0,0.0002]
[1719825025102,1.96713807,62969.0,62968.0,0.0002]
[1719825026003,1.96713807,62969.0,62968.0,0.2394]
[1719825027834,1.96743688,62969.0,62968.0,0.2394]
[1719825028005,1.9674318,62969.0,62968.0,0.2394]
[1719825028358,1.80509809,62969.0,62968.0,0.2394]
[1719825028563,1.64275911,62969.0,62968.0,0.2394]
[1719825028764,1.52447616,62969.0,62968.0,0.2394]
[1719825028983,1.50852904,62969.0,62968.0,0.2394]
[1719825029661,1.19091304,62969.0,62968.0,0.2394]
[1719825030342,1.17091304,62969.0,62968.0,0.2394]
[1719825030664,1.17091304,62969.0,62968.0,0.3116]
[1719825030865,1.17083617,62969.0,62968.0,0.3116]
[1719825031645,1.1678439,62969.0,62968.0,0.3116]
[1719825032554,1.1628439,62969.0,62968.0,0.3116]
[1719825032764,1.1648439,62969.0,62968.0,0.3116]
[1719825033525,1.1848439,62969.0,62968.0,0.3116]
[1719825033735,1.1768439,62969.0,62968.0,0.3116]
[1719825033945,1.1818439,62969.0,62968.0,0.3116]
[1719825034159,1.18181489,62969.0,62968.0,0.2394]
[1719825037134,1.18180143,62969.0,62968.0,0.2394]
[1719825037568,1.18180127,62969.0,62968.0,0.2394]
[1719825037933,1.16180127,62969.0,62968.0,0.2394]
[1719825041684,1.16181094,62969.0,62968.0,0.2394]
[1719825042365,1.16181094,62969.0,62968.0,0.3116]
[1719825043518,1.14895129,62969.0,62968.0,0.3116]
[1719825043717,1.16180193,62969.0,62968.0,0.3116]
[1719825046582,0.26926193,62969.0,62968.0,0.3116]
[1719825046787,0.26926676,62969.0,62968.0,0.3116]
[1719825047151,0.25641129,62969.0,62968.0,0.3116]
[1719825047348,0.26926174,62969.0,62968.0,0.3116]
[1719825048218,0.26926174,62969.0,62968.0,0.3592708]
[1719825048977,0.42806974,62969.0,62968.0,0.2394]
[1719825049185,1.08330174,62969.0,62968.0,0.0002]
[1719825049767,1.08330174,62969.0,62968.0,0.001124]
[1719825049981,1.08412507,62969.0,62968.0,0.001124]
[1719825053330,1.40173716,62969.0,62968.0,0.001124]
[1719825056507,1.36890729,62969.0,62968.0,0.001124]
[1719825056913,1.38890729,62969.0,62968.0,0.001124]
[1719825057108,1.36890729,62969.0,62968.0,0.319724]
[1719825057756,1.36880729,62969.0,62968.0,0.319724]
[1719825059669,1.05119129,62969.0,62968.0,0.319724]
[1719825060438,0.41595929,62969.0,62968.0,0.319724]
[1719825060636,0.73357529,62969.0,62968.0,0.319724]
[1719825063378,0.41595929,62969.0,62968.0,0.319724]
[1719825063578,0.25715129,62969.0,62968.0,0.319724]
[1719825063789,0.01226212,62969.0,62968.0,0.796155]
[1719825064012,0.00784,62969.0,62968.0,1.113776]
[1719825064211,0.00784,62969.0,62968.0,0.796155]
[1719825064823,0.00284,62969.0,62968.0,0.796155]
[1719825065080,0.00284,62969.0,62968.0,0.9081622]
[1719825066105,0.00084,62969.0,62968.0,0.9081622]
[1719825066324,0.00084,62969.0,62968.0,0.8359622]
[1719825066536,0.00084,62969.0,62968.0,0.9111622]
[1719825066736,0.00525335,62969.0,62968.0,0.9111622]
[1719825066944,0.00084,62969.0,62968.0,0.9111622]
[1719825068776,0.00084,62969.0,62968.0,1.2287832]
[1719825069370,0.00084,62969.0,62968.0,0.9111622]
[1719825069579,0.00084,62969.0,62968.0,1.2287832]
[1719825070003,0.00084,62969.0,62968.0,0.9111622]
[1719825070507,0.20084,62969.0,62968.0,0.9111622]
[1719825073219,0.20084,62969.0,62968.0,1.2287832]
[1719825073509,0.20084,62969.0,62968.0,0.9111622]
[1719825074490,0.20084,62969.0,62968.0,0.93404019]
[1719825075529,0.20525335,62969.0,62968.0,0.93404019]
[1719825077203,0.20525335,62969.0,62968.0,0.54421919]
[1719825077409,0.20525335,62969.0,62968.0,0.61641919]
[1719825078553,0.20525335,62969.0,62968.0,0.45760919]
[1719825078795,0.00525335,62969.0,62968.0,0.61641919]
[1719825080651,0.00525335,62969.0,62968.0,0.93404019]
[1719825083478,0.00525335,62969.0,62968.0,0.61641919]
[1719825084320,0.00525335,62969.0,62968.0,0.45760919]
[1719825084611,0.00525335,62969.0,62968.0,0.61641919]
[1719825087136,0.00525335,62969.0,62968.0,0.45760919]
[1719825089150,0.00525335,62969.0,62968.0,0.34810919]
[1719825096492,0.00525335,62969.0,62968.0,0.59361919]
[1719825097820,0.00525335,62969.0,62968.0,0.91124019]
[1719825098195,0.00084,62969.0,62968.0,0.91124019]
[1719825098398,0.00528069,62969.0,62968.0,0.91124019]
[1719825098574,0.00084,62969.0,62968.0,0.91124019]
[1719825098782,0.00528069,62969.0,62968.0,0.91124019]
[1719825098982,0.00084,62969.0,62968.0,1.22886119]
[1719825100421,0.00084,62969.0,62968.0,1.39120017]
[1719825101872,0.00084,62969.0,62968.0,1.38820017]
[1719825102246,0.00184,62969.0,62968.0,1.39820017]
[1719825102441,0.00184,62969.0,62968.0,1.40420017]
[1719825102442,0.00284,62969.0,62968.0,1.40420017]
[1719825102647,0.00284,62969.0,62968.0,1.33200017]
[1719825102890,0.43473717,62969.0,62968.0,0.017124]
[1719825103118,1.44168975,62969.0,62968.0,0.017124]
[1719825103315,1.75930575,62969.0,62968.0,0.017124]
[1719825103612,1.78082082,62969.0,62968.0,0.017124]
[1719825103988,1.77982228,62969.0,62968.0,0.011124]
[1719825104206,1.85091501,62969.0,62968.0,0.011124]
[1719825104417,1.77982228,62969.0,62968.0,0.011124]
[1719825105173,1.75730575,62969.0,62968.0,0.001124]
[1719825105613,1.75730575,62969.0,62968.0,0.004124]
[1719825105815,1.76530575,62969.0,62968.0,0.001124]
[1719825105996,1.79475884,62969.0,62968.0,0.001124]
[1719825106197,1.79975884,62969.0,62968.0,0.001124]
[1719825106398,1.77030575,62969.0,62968.0,0.001124]
[1719825111767,1.78857736,62969.0,62968.0,0.001124]
[1719825111976,2.23506227,62969.0,62968.0,0.001124]
[1719825113752,2.59849352,62969.0,62968.0,0.001124]
[1719825114759,2.59049352,62969.0,62968.0,0.001124]
[1719825114966,2.60449352,62969.0,62968.0,0.001124]
[1719825115167,2.80449352,62969.0,62968.0,0.001124]
[1719825115468,2.78549352,62969.0,62968.0,0.001124]
[1719825115885,2.81349352,62969.0,62968.0,0.001124]
[1719825116413,2.79949352,62969.0,62968.0,0.001124]
[1719825116668,2.75664542,62969.0,62968.0,0.001124]
[1719825116860,2.78557089,62969.0,62968.0,0.001124]
[1719825117230,2.99957089,62969.0,62968.0,0.001124]
[1719825117444,3.35816371,62969.0,62968.0,0.001124]
[1719825117646,3.52289672,62969.0,62968.0,0.001124]
[1719825117854,3.19516371,62969.0,62968.0,0.001124]
[1719825118384,3.33680147,62969.0,62968.0,0.001124]
[1719825118751,3.33680002,62969.0,62968.0,0.001124]
[1719825119452,3.19516226,62969.0,62968.0,0.001124]
[1719825119998,3.19519297,62969.0,62968.0,0.001124]
[1719825122041,3.39519297,62969.0,62968.0,0.001124]
[1719825122306,2.94345817,62967.0,62966.0,1e-06]
[1719825122487,3.9881917,62967.0,62966.0,1e-06]
[1719825122688,3.64339269,62967.0,62966.0,1e-06]
[1719825122817,3.87922743,62967.0,62966.0,1e-06]
[1719825123021,3.79148127,62967.0,62966.0,1e-06]
[1719825123222,3.99479035,62967.0,62966.0,1e-06]
[1719825123622,3.80879035,62967.0,62966.0,1e-06]
[1719825123903,3.39037735,62967.0,62966.0,1e-06]
[1719825124885,3.40437735,62967.0,62966.0,1e-06]
[1719825125396,3.37573112,62967.0,62966.0,1e-06]
[1719825125611,3.40387163,62967.0,62966.0,1e-06]
[1719825125958,3.37563112,62967.0,62966.0,1e-06]
[1719825126160,3.57563112,62967.0,62966.0,1e-06]
[1719825126343,3.53465575,62967.0,62966.0,1e-06]
[1719825126543,3.56289648,62967.0,62966.0,1e-06]
[1719825127958,3.53455575,62967.0,62966.0,1e-06]
[1719825128909,3.49876669,62967.0,62966.0,1e-06]
[1719825129313,3.53974128,62967.0,62966.0,1e-06]
[1719825129543,3.53974128,62967.0,62948.0,0.429155]
[1719825129544,1.37659817,62949.0,62948.0,0.429155]
[1719825129671,1.00403,62946.0,62937.0,0.438406]
[1719825130014,1.56403311,62946.0,62937.0,0.438406]
[1719825130261,1.56393311,62946.0,62937.0,0.438406]
[1719825130412,1.56383311,62946.0,62937.0,0.438406]
[1719825130838,1.3644833,62946.0,62945.0,0.212151]
[1719825131181,1.3840833,62946.0,62945.0,0.212151]
[1719825131587,1.3644833,62946.0,62945.0,0.212151]
[1719825131884,1.3840833,62946.0,62945.0,0.212151]
[1719825132635,1.3850833,62946.0,62945.0,0.216151]
[1719825132989,1.53359163,62946.0,62945.0,0.216151]
[1719825133393,1.3850833,62946.0,62945.0,0.216151]
[1719825133787,1.3653833,62946.0,62945.0,0.216151]
[1719825133991,1.0475513,62946.0,62945.0,0.216151]
[1719825134570,1.0575513,62946.0,62945.0,0.216151]
[1719825134773,1.0475513,62946.0,62945.0,0.216151]
[1719825135195,1.0671513,62946.0,62945.0,0.216151]
[1719825136168,1.3848833,62946.0,62945.0,0.216151]
[1719825137378,1.77513061,62946.0,62945.0,0.216151]
[1719825137578,1.87513061,62946.0,62945.0,0.013251]
[1719825138033,1.87503061,62946.0,62945.0,0.013251]
[1719825138192,1.87493061,62946.0,62945.0,0.01070803]
[1719825138576,1.87483061,62946.0,62945.0,0.01317553]
[1719825139409,1.87473061,62946.0,62945.0,0.01317553]
[1719825139682,1.87463061,62946.0,62945.0,0.01317553]
[1719825140082,1.71892228,62946.0,62945.0,0.01317553]
[1719825140944,1.71792228,62946.0,62945.0,0.00917553]
[1719825141465,1.71992228,62946.0,62945.0,0.00917553]
[1719825142067,1.71982228,62946.0,62945.0,0.00917553]
[1719825142444,1.71982228,62946.0,62945.0,0.01017553]
[1719825142869,1.71972228,62946.0,62945.0,0.01017553]
[1719825144143,1.71962228,62946.0,62945.0,0.01017553]
[1719825144330,1.71952228,62946.0,62945.0,0.01017553]
[1719825144524,1.71962228,62946.0,62945.0,0.01017553]
[1719825145043,2.03745428,62946.0,62945.0,0.01017553]
[1719825145331,2.03745428,62946.0,62945.0,0.01027553]
[1719825145532,1.62792228,62946.0,62945.0,0.01027553]
[1719825145731,1.64752228,62946.0,62945.0,0.12897553]
[1719825145927,1.64752228,62946.0,62945.0,0.22257553]
[1719825146489,1.64752228,62946.0,62945.0,0.22267553]
[1719825147483,1.80985599,62946.0,62945.0,0.22267553]
[1719825147676,1.4655833,62946.0,62945.0,0.22267553]
[1719825147936,0.7301193,62946.0,62945.0,0.22267553]
[1719825148225,0.7301193,62946.0,62945.0,0.29487553]
[1719825148531,0.4123873,62946.0,62945.0,0.22267553]
[1719825148652,0.7301193,62946.0,62945.0,0.22267553]
[1719825151500,0.7497193,62946.0,62945.0,0.22267553]
[1719825151889,0.7301193,62946.0,62945.0,0.22267553]
[1719825155586,0.4123873,62946.0,62945.0,0.69927553]
[1719825156298,0.4123873,62946.0,62945.0,0.78509118]
[1719825156940,0.00993213,62946.0,62945.0,1.26169618]
[1719825157226,0.0022,62946.0,62945.0,1.65203318]
[1719825157501,0.0022,62946.0,62945.0,1.96977018]
[1719825158108,0.0002,62946.0,62945.0,1.96977018]
[1719825158309,0.0002,62946.0,62945.0,1.96877018]
[1719825158470,0.0002,62946.0,62945.0,1.97277018]
[1719825158471,0.0012,62946.0,62945.0,1.97277018]
[1719825160415,0.1999,62957.0,62956.0,0.476523]
[1719825160617,0.1999,62957.0,62956.0,1.236843]
[1719825160937,0.1999,62957.0,62956.0,1.8750745]
[1719825161146,0.04478917,62962.0,62958.0,0.370436]
[1719825161147,0.1999,62959.0,62958.0,0.370436]
[1719825161298,0.04478917,62962.0,62961.0,0.2116]
[1719825161499,0.04478917,62962.0,62961.0,0.2838]
[1719825161903,0.04478917,62962.0,62961.0,0.4450955]
[1719825162101,0.24468917,62962.0,62961.0,0.4450955]
[1719825163093,0.26928917,62962.0,62961.0,0.2140675]
[1719825163327,1.07041617,62962.0,62961.0,0.0024675]
[1719825163748,1.07041617,62962.0,62961.0,0.0023675]
[1719825163984,1.06341617,62962.0,62961.0,0.0023675]
[1719825164565,1.05841617,62962.0,62961.0,0.0023675]
[1719825164775,1.05841617,62962.0,62961.0,0.0022675]
[1719825164980,1.05841617,62962.0,62961.0,0.0052675]
[1719825165180,1.05841617,62962.0,62961.0,0.0021675]
[1719825165384,1.05841617,62962.0,62961.0,0.0020675]
[1719825165581,1.05841617,62962.0,62961.0,0.0019675]
[1719825165867,1.05841617,62962.0,62961.0,0.0018675]
[1719825166271,1.06041617,62962.0,62961.0,0.0017675]
[1719825166710,1.06241617,62962.0,62961.0,0.0017675]
[1719825166886,1.04281617,62962.0,62961.0,0.0988675]
[1719825167245,1.06041617,62962.0,62961.0,0.0988675]
[1719825167453,1.06541617,62962.0,62961.0,0.0988675]
[1719825167787,1.04581617,62962.0,62961.0,0.0988675]
[1719825167986,0.41051417,62962.0,62961.0,0.2109675]
[1719825168224,0.25168917,62962.0,62961.0,0.2109675]
[1719825168818,0.25870987,62962.0,62961.0,0.2109675]
[1719825169180,0.26447782,62962.0,62961.0,0.33448755]
[1719825169377,0.26447782,62962.0,62961.0,0.49331555]
[1719825169691,0.25168917,62962.0,62961.0,0.49331555]
[1719825169898,0.26447307,62962.0,62961.0,0.49331555]
[1719825170525,0.26447307,62962.0,62961.0,0.49321555]
[1719825170994,0.26447307,62962.0,62961.0,0.3695955]
[1719825172005,0.06457307,62962.0,62961.0,0.3695955]
[1719825172208,0.26447307,62962.0,62961.0,0.3695955]
[1719825172542,0.26447307,62962.0,62961.0,0.3694955]
[1719825173794,0.26447307,62962.0,62961.0,0.3693955]
[1719825174013,0.26447307,62962.0,62961.0,0.3692955]
[1719825174394,0.26447307,62962.0,62961.0,0.3693955]
[1719825174603,0.26457307,62962.0,62961.0,0.3693955]
[1719825174798,0.26457307,62962.0,62961.0,0.3694955]
[1719825175611,0.26457307,62962.0,62961.0,0.52489155]
[1719825176035,0.26457307,62962.0,62961.0,0.3694955]
[1719825177066,0.06467307,62962.0,62961.0,0.3694955]
[1719825177367,0.26457307,62962.0,62961.0,0.3694955]
[1719825178146,0.26467307,62962.0,62961.0,0.3694955]
[1719825179558,0.0199839,62962.0,62961.0,0.6871515]
[1719825179767,0.0072,62962.0,62961.0,0.6871515]
[1719825180172,0.2071,62962.0,62961.0,0.6871515]
[1719825180400,0.0072,62962.0,62961.0,0.6871515]
[1719825181058,0.2071,62962.0,62961.0,0.6871515]
[1719825181260,0.2198692,62962.0,62961.0,0.6871515]
[1719825182478,0.0199692,62962.0,62961.0,0.6871515]
[1719825182678,0.0199692,62962.0,62961.0,0.6880755]
[1719825182903,0.2198692,62962.0,62961.0,0.6880755]
[1719825183104,0.2207092,62962.0,62961.0,0.6880755]
[1719825183932,0.0208092,62962.0,62961.0,0.85080921]
[1719825184132,0.00804,62962.0,62961.0,0.85080921]
[1719825184303,0.00804,62962.0,62961.0,1.16846521]
[1719825185756,0.00604,62962.0,62961.0,0.53275321]
[1719825185987,0.00604,62962.0,62961.0,0.3704195]
[1719825186205,0.01384418,62962.0,62961.0,0.3734195]
[1719825186407,0.01384418,62962.0,62961.0,0.3744195]
[1719825186810,0.05863335,62962.0,62961.0,0.0063915]
[1719825188839,0.21745835,62962.0,62961.0,0.0063915]
[1719825189165,0.05863335,62962.0,62961.0,0.0063915]
[1719825190957,0.21745835,62962.0,62961.0,0.0063915]
[1719825191228,0.53510935,62962.0,62961.0,0.0063915]
[1719825192602,0.55470935,62962.0,62961.0,0.0063915]
[1719825194253,0.97826035,62962.0,62961.0,0.0063915]
[1719825194656,0.95866035,62962.0,62961.0,0.0063915]
[1719825194880,0.97826035,62962.0,62961.0,0.0063915]
[1719825195076,0.95866035,62962.0,62961.0,0.0063915]
[1719825195279,0.85276035,62962.0,62961.0,0.0063915]
[1719825203060,0.87236035,62962.0,62961.0,0.0063915]
[1719825204594,0.85276035,62962.0,62961.0,0.0063915]
[1719825206407,0.87236035,62962.0,62961.0,0.0063915]
[1719825206609,0.85276035,62962.0,62961.0,0.0063915]
[1719825206814,0.53510935,62962.0,62961.0,0.0063915]
[1719825208338,0.55470935,62962.0,62961.0,0.0063915]
[1719825208779,0.53510935,62962.0,62961.0,0.0063915]
[1719825209921,0.55470935,62962.0,62961.0,0.0063915]
[1719825210365,0.87236035,62962.0,62961.0,0.0063915]
[1719825210573,1.81465033,62962.0,62961.0,0.0063915]
[1719825211117,1.74245033,62962.0,62961.0,0.0063915]
[1719825211695,1.74245033,62962.0,62961.0,0.0033915]
[1719825211903,1.74645033,62962.0,62961.0,0.0033915]
[1719825212109,1.74645033,62962.0,62961.0,0.0023915]
[1719825212447,1.75245033,62962.0,62961.0,0.0023915]
[1719825223737,1.56225033,62962.0,62961.0,0.0023915]
[1719825224864,1.54265033,62962.0,62961.0,0.0023915]
[1719825225143,0.26853335,62962.0,62961.0,0.2029915]
[1719825230589,0.26853335,62962.0,62961.0,0.3618195]
[1719825232198,0.25572917,62962.0,62961.0,0.3618195]
[1719825232400,0.26854695,62962.0,62961.0,0.3618195]
[1719825233417,0.26854695,62962.0,62961.0,0.78645095]
[1719825240361,0.02385778,62962.0,62961.0,1.10450695]
[1719825240563,0.02385778,62962.0,62961.0,1.69436295]
[1719825240765,0.01104,62962.0,62961.0,1.85670193]
[1719825241006,0.01104,62962.0,62961.0,1.65670193]
[1719825241349,0.01104,62962.0,62961.0,1.85670193]
[1719825241548,0.00104,62962.0,62961.0,1.85670193]
[1719825241756,0.00204,62962.0,62961.0,1.85770193]
[1719825241967,0.00304,62962.0,62961.0,1.87170193]
[1719825243508,0.00304,62962.0,62961.0,1.59950193]
[1719825243717,0.00304,62962.0,62961.0,1.67170193]
[1719825246882,0.00304,62962.0,62961.0,1.87170193]
[1719825247122,0.00304,62962.0,62961.0,1.67170193]
[1719825247250,0.00304,62962.0,62961.0,1.50936295]
[1719825248096,0.00304,62962.0,62961.0,1.19170695]
[1719825250283,0.00304,62962.0,62961.0,1.70936295]
[1719825250468,0.00304,62962.0,62961.0,1.87170193]
[1719825252682,0.00304,62962.0,62961.0,0.6944755]
[1719825252883,0.00304,62962.0,62961.0,0.6948755]
[1719825253686,0.00204,62962.0,62961.0,0.6938755]
[1719825253895,0.00104,62962.0,62961.0,0.9975315]
[1719825254122,0.00304,62962.0,62961.0,1.0135315]
[1719825254316,0.00304,62962.0,62961.0,1.14209604]
[1719825254515,0.00104,62962.0,62961.0,1.13969604]
[1719825254721,0.00104,62962.0,62961.0,1.14009604]
[1719825254962,0.00204,62962.0,62961.0,1.14209604]
[1719825255573,0.00304,62962.0,62961.0,1.15609604]
[1719825256138,0.00304,62962.0,62961.0,1.22829604]
[1719825258896,0.00304,62962.0,62961.0,0.91024004]
[1719825261586,0.21947851,62962.0,62961.0,0.0183915]
[1719825265371,0.21947851,62962.0,62961.0,0.0187915]
[1719825265588,0.21947851,62962.0,62961.0,0.0909915]
[1719825266675,0.21947851,62962.0,62961.0,0.0905915]
[1719825267040,0.21947851,62962.0,62961.0,0.11819815]
[1719825267395,0.21947851,62962.0,62961.0,0.11779815]
[1719825268003,0.21947851,62962.0,62961.0,0.0905915]
[1719825268203,1.05798051,62962.0,62961.0,0.0183915]
[1719825268781,1.03838051,62962.0,62961.0,0.0183915]
[1719825270426,1.03638051,62962.0,62961.0,0.0023915]
[1719825271006,1.03638051,62962.0,62961.0,0.0027915]
[1719825271263,0.53512951,62962.0,62961.0,0.0023915]
[1719825271492,0.53512951,62962.0,62961.0,0.0043915]
[1719825271706,0.53512951,62962.0,62961.0,0.0033915]
[1719825271912,0.53512951,62962.0,62961.0,0.0063915]
[1719825272887,0.53512951,62962.0,62961.0,0.03589661]
[1719825274094,0.53512951,62962.0,62961.0,0.03629661]
[1719825274234,0.53512951,62962.0,62961.0,0.0067915]
[1719825274441,0.53512951,62962.0,62961.0,0.0063915]
[1719825280142,0.01386434,62962.0,62961.0,0.6713755]
[1719825280522,0.00104,62962.0,62961.0,0.9890315]
[1719825280749,0.01381356,62962.0,62961.0,0.6713755]
[1719825280921,0.00104,62962.0,62961.0,0.77969591]
[1719825281126,0.00104,62962.0,62961.0,0.77869591]
[1719825281327,0.00104,62962.0,62961.0,0.77569591]
[1719825281551,0.00204,62962.0,62961.0,0.78669591]
[1719825282555,0.00204,62962.0,62961.0,1.10435191]
[1719825282715,0.00304,62962.0,62961.0,1.17955191]
[1719825290255,0.00304,62962.0,62961.0,0.28353991]
[1719825290455,0.00304,62962.0,62961.0,0.0163915]
[1719825290456,0.04782917,62962.0,62961.0,0.0163915]
[1719825290677,0.06061602,62962.0,62961.0,0.0163915]
[1719825291098,0.14621602,62962.0,62961.0,0.0163915]
[1719825293500,0.30504102,62962.0,62961.0,0.0163915]
[1719825294000,0.95994302,62962.0,62961.0,0.0163915]
[1719825294734,1.90779284,62962.0,62961.0,0.0163915]
[1719825294909,1.97999284,62962.0,62961.0,0.0163915]
[1719825295285,1.90779284,62962.0,62961.0,0.0163915]
[1719825295698,1.75022454,62962.0,62961.0,0.0163915]
[1719825295914,1.74922454,62962.0,62961.0,0.0053915]
[1719825296112,1.74922454,62962.0,62961.0,0.0023915]
[1719825296113,1.74822454,62962.0,62961.0,0.0023915]
[1719825296312,1.74821034,62962.0,62961.0,0.0023915]
[1719825296742,1.75521034,62962.0,62961.0,0.0023915]
[1719825298569,1.76021034,62962.0,62961.0,0.0023915]
[1719825299575,1.76023325,62962.0,62961.0,0.0023915]
[1719825299974,1.17244327,62962.0,62961.0,0.0023915]
[1719825300176,1.18204327,62962.0,62961.0,0.0023915]
[1719825300816,1.16244327,62962.0,62961.0,0.0023915]
[1719825300996,1.15024302,62962.0,62961.0,0.0023915]
[1719825301197,0.74699202,62962.0,62961.0,0.0027915]
[1719825302276,0.74699202,62962.0,62961.0,0.0023915]
[1719825303642,0.42934102,62962.0,62961.0,0.0023915]
[1719825304091,0.42934102,62962.0,62961.0,0.0027915]
[1719825304288,0.42934102,62962.0,62961.0,0.2025915]
[1719825304491,0.27051602,62962.0,62961.0,0.04575475]
[1719825304733,0.07061602,62962.0,62961.0,0.6794755]
[1719825305376,0.05782917,62962.0,62961.0,0.6794755]
[1719825305574,0.0636202,62962.0,62961.0,0.7516755]
[1719825305748,0.0636202,62962.0,62961.0,0.89037685]
[1719825305924,0.04582917,62962.0,62961.0,0.50052085]
[1719825306102,0.04582917,62962.0,62961.0,0.58672085]
[1719825306103,0.04782917,62962.0,62961.0,0.58672085]
[1719825306308,0.06062046,62962.0,62961.0,0.51452085]
[1719825306506,0.06062046,62962.0,62961.0,0.58672085]
[1719825307029,0.06062046,62962.0,62961.0,0.58632085]
[1719825307190,0.06062046,62962.0,62961.0,0.51412085]
[1719825308642,0.06062046,62962.0,62961.0,0.15509285]
[1719825309032,0.06062046,62962.0,62961.0,0.0163915]
[1719825309628,0.25574046,62962.0,62961.0,0.0163915]
[1719825309828,0.75181646,62962.0,62961.0,0.0163915]
[1719825310614,0.73221646,62962.0,62961.0,0.0163915]
[1719825314823,0.75181646,62962.0,62961.0,0.0163915]
[1719825315054,0.73221646,62962.0,62961.0,0.0163915]
[1719825315250,1.06946746,62962.0,62961.0,0.0163915]
[1719825315457,1.04986746,62962.0,62961.0,0.0163915]
[1719825315630,1.06946746,62962.0,62961.0,0.0163915]
[1719825315783,1.08174434,62962.0,62961.0,0.0163915]
[1719825316130,1.82155744,62962.0,62961.0,0.0163915]
[1719825316337,1.76163499,62962.0,62961.0,0.0163915]
[1719825316750,1.76163684,62962.0,62961.0,0.0163915]
[1719825317154,1.76163684,62962.0,62961.0,0.0023915]
[1719825317155,1.75963684,62962.0,62961.0,0.0023915]
[1719825318073,1.75967041,62962.0,62961.0,0.0023915]
[1719825318393,1.74735744,62962.0,62961.0,0.0023915]
[1719825318591,1.75966947,62962.0,62961.0,0.0023915]
[1719825318816,1.76566947,62962.0,62961.0,0.0023915]
[1719825319041,1.76966947,62962.0,62961.0,0.0023915]
[1719825319554,2.04200318,62962.0,62961.0,0.0023915]
[1719825319783,2.38337237,62962.0,62961.0,0.0023915]
[1719825320911,2.34734215,62962.0,62961.0,0.0023915]
[1719825321115,2.38356653,62962.0,62961.0,0.0023915]
[1719825324078,2.34734215,62962.0,62961.0,0.0023915]
[1719825324281,2.77340366,62962.0,62961.0,0.0023915]
[1719825325982,2.77348856,62962.0,62961.0,0.0023915]
[1719825326397,3.17348856,62962.0,62961.0,0.0023915]
[1719825326607,3.20885396,62962.0,62961.0,0.0023915]
[1719825326800,3.24980024,62962.0,62961.0,0.0023915]
[1719825327450,3.24992417,62962.0,62961.0,0.0023915]
[1719825327854,3.20897789,62962.0,62961.0,0.0023915]
[1719825329896,3.23197789,62962.0,62961.0,0.0023915]
[1719825330492,3.16019315,62962.0,62961.0,0.0023915]
[1719825330693,3.23218069,62962.0,62961.0,0.0023915]
[1719825330893,3.16019315,62962.0,62961.0,0.0023915]
[1719825331155,3.23220656,62962.0,62961.0,0.0023915]
[1719825331380,3.22820656,62962.0,62961.0,0.0023915]
[1719825331574,3.22220656,62962.0,62961.0,0.0023915]
[1719825331750,3.73985756,62962.0,62961.0,0.0023915]
[1719825331953,3.79920118,62962.0,62961.0,0.0023915]
[1719825332277,3.84014908,62962.0,62961.0,0.0023915]
[1719825332453,3.83314908,62962.0,62961.0,0.0023915]
[1719825332654,3.84714908,62962.0,62961.0,0.0023915]
[1719825333262,3.85114908,62962.0,62961.0,0.0023915]
[1719825333463,3.76241522,62962.0,62961.0,0.0023915]
[1719825333666,3.84725288,62962.0,62961.0,0.0023915]
[1719825334070,4.00080616,62962.0,62961.0,0.0033915]
[1719825334621,3.85925288,62962.0,62961.0,0.0033915]
[1719825336810,3.8117377,62962.0,62961.0,0.0033915]
[1719825337015,3.8596072,62962.0,62961.0,0.0033915]
[1719825340053,3.81112207,62962.0,62961.0,0.0033915]
[1719825340216,3.85887092,62962.0,62961.0,0.0033915]
[1719825340530,3.85893029,62962.0,62961.0,0.0033915]
[1719825343091,3.7871346,62962.0,62961.0,0.0033915]
[1719825343298,3.85864664,62962.0,62961.0,0.0033915]
[1719825344542,3.92862249,62962.0,62961.0,0.0033915]
[1719825344998,3.72862249,62962.0,62961.0,0.0033915]
[1719825345400,3.92862249,62962.0,62961.0,0.0033915]